Cogmind - Beta 16 @@@ ROGUE MODE // 2025.10.24 @ 18:26:29 Player: alj Result: Destroyed by G-47 Trooper with Particle Gun Performance ------------- Evolutions (2) 1000 Regions Visited (4) 800 Robots Destroyed (21) 105 Value Destroyed (597) 597 Prototype IDs (1) 20 Alien Tech Used (0) 0 Bonus (21) 21 TOTAL SCORE: 2543 Bonus ------- Follower Combat Kills 21 Cogmind --------- Core Integrity 0/550 Matter 300/300 Energy 160/160 System Corruption 0% Temperature Cool (9) Movement Core (150) Ox2 Location -8/Materials Parts ------- > --- POWER (2) -------- Light Nuclear Core > --- PROPULSION (4) --- (None) > --- UTILITY (2) ------ Targeting Computer > --- WEAPON (3) ------- Katana > --- INVENTORY (5) ---- Light Armor Plating Peak State ------------ > --- POWER ------------ Improved Ion Engine Light Angular Momentum Engine > --- PROPULSION ------- Light Treads Light Treads Light Treads Light Treads > --- UTILITY ---------- Utility Shielding Hacking Suite > --- WEAPON ----------- Small Laser Beam Rifle Beam Rifle > --- INVENTORY -------- Light Armor Plating Mining Laser [Rating: 20] Favorites ----------- Power Light Angular Momentum Engine Engine Light Angular Momentum Engine Power Core Light Nuclear Core Propulsion Light Treads Treads Light Treads Leg Aluminum Leg Wheel Wheel Hover Unit Hover Unit Flight Unit Flight Unit Utility Utility Shielding Processor Targeting Computer Hackware Hacking Suite Protection Utility Shielding Weapon Beam Rifle Energy Gun Beam Rifle Energy Cannon Particle Cannon Special Weapon Mining Laser Slashing Weapon Katana Build | -11 -10 -10 -9 -8 ------- Run | Yrd Mat Min Mat Mat Slots Evolved 4 | . . . 2 2 Power 1 | . . . . 1 Propulsion 2 | . . . 2 . Utility . | . . . . . Weapon 1 | . . . . 1 Parts Attached 25 | . . 8 3 14 Power 4 | . . 1 . 3 Engine 3 | . . 1 . 2 Core 1 | . . . . 1 Reactor . | . . . . . Propulsion 10 | . . 2 1 7 Treads 4 | . . 2 1 1 Leg 1 | . . . . 1 Wheel 2 | . . . . 2 Hover 2 | . . . . 2 Flight 1 | . . . . 1 Utility 5 | . . 3 1 1 Device . | . . . . . Storage . | . . . . . Processor 1 | . . . . 1 Hackware 1 | . . . 1 . Protection 3 | . . 3 . . Artifact . | . . . . . Weapon 6 | . . 2 1 3 Energy Gun 3 | . . 1 1 1 Energy Cannon 1 | . . . . 1 Ballistic Gun . | . . . . . Ballistic Cannon . | . . . . . Launcher . | . . . . . Special Weapon 1 | . . 1 . . Impact Weapon . | . . . . . Slashing Weapon 1 | . . . . 1 Piercing Weapon . | . . . . . Special Melee Weapon . | . . . . . Unidentified Prototypes 1 | . . . . 1 Parts Lost 11 | . . . 1 10 Power 3 | . . . . 3 Propulsion 4 | . . . . 4 Utility 1 | . . . 1 . Weapon 3 | . . . . 3 Highest Loss Streak 6 | . . . 1 6 To Critical Strikes . | . . . . . Average Backups 1 | . . . 1 1 Power . | . . . . . Propulsion . | . . . . . Utility . | . . . 1 1 Weapon . | . . . . . Tool/Special . | . . . . . Unused Backups . | . . . . . Power . | . . . . . Propulsion . | . . . . . Utility . | . . . . . Weapon . | . . . . . Tool/Special . | . . . . . Average Slot Usage (%) 63 | . . 48 83 65 Engine 8 | . . 1 11 10 Treads 17 | . . 16 30 14 Processor 1 | . . . . 1 Hackware 5 | . . . 7 6 Protection 9 | . . 15 12 6 Energy Gun 11 | . . 7 11 14 Energy Cannon 1 | . . . . 2 Special Weapon 3 | . . 6 9 . Slashing Weapon 2 | . . . . 4 Peak Build Rating 20 | . . 12 15 20 Average Rating 11 | . . 4 14 14 On Entrance 5 | . . . 12 15 Avg Prop Armor Cover (%) 10 | . . . . 10 Naked Turns 205 | . 64 141 . . Heaviest Build 24 | . . 17 17 24 Greatest Support 80 | 3 3 40 60 80 Greatest Overweight (x) 4 | . . . . 4 Average Overweight (x) . | . . . . . Largest Inventory Capacity 5 | 5 5 5 5 5 Average Capacity 5 | 5 5 5 5 5 Most Carried 3 | . . 1 2 3 Average Carried 1 | . . . 1 1 Final Capacity 5 | 5 5 5 5 5 Final Carried 2 | . . 1 2 1 Class Distribution -------------------- 40% | Scavenger-Mutant 36% | Mutant 22% | Scavenger-Tank Dominant Class ---------------- Mutant | -10/Materials Mutant | -10/Mines Scavenger-Mutant | -9/Materials Scavenger-Tank | -8/Materials Resources | -11 -10 -10 -9 -8 ----------- Run | Yrd Mat Min Mat Mat Matter Collected 459 | 37 . 216 30 176 Remotely . | . . . . . Salvage Created 780 | . . 33 140 607 Parts 51 | . . 3 6 42 Haulers Intercepted . | . . . . . Recyclers Shooed 2 | . . 1 . 1 Parts Field Recycled . | . . . . . Retrieved Matter . | . . . . . Parts Self-Destructed . | . . . . . Prevented . | . . . . . Parts Restored . | . . . . . Kills | -11 -10 -10 -9 -8 ------- Run | Yrd Mat Min Mat Mat Combat Hostiles Destroyed 14 | . . 2 3 9 Melee 2 | . . . . 2 Guns 8 | . . . 3 5 Cannons 4 | . . 2 . 2 Classes Destroyed 9 | . . 1 1 7 Worker 2 | . . . . 2 Builder 2 | . . . . 2 Recycler 2 | . . . . 2 Operator 1 | . . . . 1 Swarmer 2 | . . . . 2 Grunt 7 | . . 2 2 3 Duelist 1 | . . . . 1 Sentry 3 | . . . 1 2 Hunter 1 | . . . . 1 Best Kill Streak 3 | . . 2 2 3 Combat Bots Only 3 | . . 2 2 3 Max Kills in Single Turn 1 | . . 1 1 1 Gunslinging . | . . . . . Exploded . | . . . . . Melee 1 | . . . . 1 Uniques/NPCs Destroyed . | . . . . . Combat | -11 -10 -10 -9 -8 -------- Run | Yrd Mat Min Mat Mat Hostile Shots Fired 181 | . . 35 27 119 Missed 36 | . . 8 7 21 Hits 145 | . . 27 20 98 Melee 2 | . . . . 2 Projectile 143 | . . 27 20 96 Critical Strikes 4 | . . 1 . 3 Damage Taken 1844 | 8 4 318 243 1271 Core 809 | 8 4 183 50 564 Absorbed by Shields . | . . . . . Regen/Repaired (Parts) 29 | . . . 29 . Core Remaining (%) 68 | 96 . 22 87 . Volleys Fired 55 | . . 5 20 30 Largest 3 | . . 2 1 3 Hottest 156 | . . 156 56 152 Shots Fired 80 | . . 8 20 52 Gun 68 | . . 5 20 43 Cannon 9 | . . . . 9 Launcher . | . . . . . Special 3 | . . 3 . . Kinetic . | . . . . . Thermal 80 | . . 8 20 52 Explosive . | . . . . . Electromagnetic . | . . . . . Robot Hit Streak 8 | . . 3 6 8 Robot Miss Streak 3 | . . 3 2 2 Penetration Max . | . . . . . Secondary Targets 2 | . . . . 2 Max Gunslinging Chain 1 | . . . . 1 Shots Hit Robots 72 | . . 4 13 55 Core Hits 31 | . . 4 5 22 Critical Kills . | . . . . . Critical Parts Destroyed . | . . . . . Critical Strikes 4 | . . 1 . 3 Burn 2 | . . 1 . 1 Sever 2 | . . . . 2 Melee Attacks 23 | . . . . 23 Impact . | . . . . . Slashing 23 | . . . . 23 Piercing . | . . . . . Sneak Attacks 10 | . . . . 10 Combat Hostiles . | . . . . . Follow-up Attacks . | . . . . . Damage Inflicted 1810 | 16 8 100 196 1490 Guns 629 | . . 15 192 422 Cannons 123 | . . . . 123 Explosions . | . . . . . Melee 943 | . . . . 943 Ramming 43 | 16 8 13 4 2 Kinetic . | . . . . . Thermal 824 | . . 87 192 545 Explosive . | . . . . . Electromagnetic . | . . . . . Impact . | . . . . . Slashing 943 | . . . . 943 Piercing . | . . . . . Highest Corruption 2 | . 2 2 . . Average Corruption 2 | . 2 2 . . Corruption Purged . | . . . . . Corruption Blocked . | . . . . . Effects 5 | . . 5 . . Message Errors 1 | . . 1 . . Matter Fused 1 | . . 1 . . Energy Discharges 1 | . . 1 . . Data Loss (minor) 2 | . . 2 . . Overload Shots . | . . . . . Overflow Damage 139 | . . . . 139 Projectiles . | . . . . . Explosions . | . . . . . Melee 139 | . . . . 139 Knockbacks . | . . . . . Impact . | . . . . . Kinetic . | . . . . . Secondary . | . . . . . Self-Inflicted Damage 16 | 8 4 4 . . Shots . | . . . . . Rammed 14 | 1 1 8 1 3 Targets Rammed 14 | 1 1 8 1 3 Kicked . | . . . . . Crushed . | . . . . . Highest Temperature 497 | . . 117 226 497 Average Temperature 144 | . . 53 99 183 Received Heat Transfer 675 | . . 96 111 468 Effects 11 | . . . . 11 Shutdowns 4 | . . . . 4 Energy Bleed 2 | . . . . 2 Matter Decay 1 | . . . . 1 Damage (major) 4 | . . . . 4 Siege Activations . | . . . . . Martial Activations . | . . . . . Shielding Activations . | . . . . . Robots Disrupted . | . . . . . Combat Hostiles . | . . . . . Robots Corrupted . | . . . . . Combat Hostiles . | . . . . . Parts Fried . | . . . . . Impact Corruptions . | . . . . . Robots Melted . | . . . . . Combat Hostiles . | . . . . . Parts Melted 7 | . . . 3 4 Heat Transferred 2078 | . . 261 481 1336 Parts Sabotaged . | . . . . . Parts Stolen . | . . . . . Parts Stripped . | . . . . . Power Chain Reactions . | . . . . . Alert | -11 -10 -10 -9 -8 ------- Run | Yrd Mat Min Mat Mat Maximum Alert Level . | . . . . . Low Security (%) 100 | 100 100 100 100 100 Level 1 . | . . . . . Level 2 . | . . . . . Level 3 . | . . . . . Level 4 . | . . . . . Level 5 . | . . . . . High Security . | . . . . . Max Security . | . . . . . Peak Influence 87 | . 20 78 42 87 Initial 13 | . . 3 12 13 Average 13 | . 3 22 7 12 Influence Increases 541 | . 30 130 86 295 Destroy 0b10 Robot/C 340 | . . 100 60 180 Destroy 0b10 Robot/NC 35 | . . . . 35 Destroy Leader 90 | . . 20 20 50 Allied During Kill 13 | . . 10 3 . Successful Hack 3 | . . . 3 . Disable Machine 15 | . . . . 15 Partial Spotted 30 | . 30 . . . Lose Combat Pursuer 15 | . . . . 15 Influence Decreases 541 | . 20 108 86 327 Entered New Map 46 | . . 7 20 19 Time Decay 420 | . 20 101 66 233 Lost Part 75 | . . . . 75 Squads Dispatched 4 | . . . 1 3 Investigation 2 | . . . 1 1 Extermination . | . . . . . Reinforcement 2 | . . . . 2 Assault . | . . . . . Garrison . | . . . . . Intercept . | . . . . . Searches Triggered . | . . . . . Construction Impeded . | . . . . . Haulers Reinforced . | . . . . . Active Scanning Responses . | . . . . . Cargo Convoy Interrupts . | . . . . . Stealth | -11 -10 -10 -9 -8 --------- Run | Yrd Mat Min Mat Mat Distress Signals 3 | . . . 3 . Communications Jammed . | . . . . . Distress Signals . | . . . . . Times Spotted 36 | . 2 7 4 23 Peak Tracking Total 7 | . 2 3 2 7 Tactical Retreats 1 | . . . . 1 Traps | -11 -10 -10 -9 -8 ------- Run | Yrd Mat Min Mat Mat Traps Triggered 1 | . . . . 1 Indirectly . | . . . . . Trap Hack Attempts . | . . . . . Triggered . | . . . . . Disarmed 4 | . . . . 4 Reprogrammed . | . . . . . Reused . | . . . . . Traps Extracted . | . . . . . Installed . | . . . . . Triggered . | . . . . . Machines | -11 -10 -10 -9 -8 ---------- Run | Yrd Mat Min Mat Mat Machines Disabled 1 | . . . . 1 Max in Single Turn 1 | . . . . 1 Machines Repaired . | . . . . . Machines Dismantled . | . . . . . Machines Sabotaged . | . . . . . Overloaded Fab Kills . | . . . . . Hacking | -11 -10 -10 -9 -8 --------- Run | Yrd Mat Min Mat Mat Machines Accessed 5 | . . . 2 3 Terminals 2 | . . . 1 1 Fabricators . | . . . . . Repair Stations 1 | . . . 1 . Recycling Units 1 | . . . . 1 Scanalyzers 1 | . . . . 1 Garrison Access . | . . . . . Total Hacks 23 | . . . 5 18 Successful 20 | . . . 4 16 Failed 2 | . . . 1 1 Catastrophic . | . . . . . Database Lockouts 1 | . . . . 1 Manual . | . . . . . Terminals 6 | . . . 3 3 Fabricators . | . . . . . Repair Stations 2 | . . . 2 . Recycling Units 6 | . . . . 6 Scanalyzers 9 | . . . . 9 Garrison Access . | . . . . . Terminal Hacks 4 | . . . 2 2 Record 3 | . . . 2 1 Disarm Traps 1 | . . . . 1 Fabricator Hacks . | . . . . . Repair Station Hacks 2 | . . . 2 . Scan Component 1 | . . . 1 . Repair 1 | . . . 1 . Recycling Unit Hacks 6 | . . . . 6 Recycle Component 1 | . . . . 1 Process 1 | . . . . 1 Report Inventory 2 | . . . . 2 Retrieve Matter 1 | . . . . 1 Retrieve Components 1 | . . . . 1 Scanalyzer 8 | . . . . 8 Insert Component 4 | . . . . 4 Analyze 2 | . . . . 2 Retrieve Study 2 | . . . . 2 Garrison Access Hacks . | . . . . . Unauthorized Hacks . | . . . . . Terminals . | . . . . . Fabricators . | . . . . . Repair Stations . | . . . . . Recycling Units . | . . . . . Scanalyzers . | . . . . . Garrison Access . | . . . . . Data Cores Recovered . | . . . . . Used . | . . . . . Hacking Detections 4 | . . . 2 2 Full Trace Events 1 | . . . 1 . Feedback Events . | . . . . . Feedback Blocked . | . . . . . Robot Schematics Acquired . | . . . . . Robots Built . | . . . . . Authchips . | . . . . . Time . | . . . . . Total Robot Build Rating . | . . . . . Part Schematics Acquired 2 | . . . . 2 Parts Built . | . . . . . Authchips . | . . . . . Time . | . . . . . Total Part Build Rating . | . . . . . Part Studies Acquired 1 | . . . . 1 Parts Repaired 1 | . . . 1 . Time 26 | . . . 26 . Parts Recycled 1 | . . . . 1 Recycled Matter 1 | . . . . 1 Retrieved Matter 1 | . . . . 1 Retrieved Components . | . . . . . Parts Scanalyzed 2 | . . . . 2 Part Schematics Acquired 2 | . . . . 2 Parts Damaged . | . . . . . Bothacking | -11 -10 -10 -9 -8 ------------ Run | Yrd Mat Min Mat Mat Used RIF Installer . | . . . . . Robots Hacked . | . . . . . Non-combat . | . . . . . Combat . | . . . . . Robot Hacks Applied . | . . . . . Relay Couplers Released . | . . . . . Fabnet Peak Effective % . | . . . . . Robots Rewired . | . . . . . Allies Hacked . | . . . . . Hacks Repelled . | . . . . . Allies | -11 -10 -10 -9 -8 -------- Run | Yrd Mat Min Mat Mat Total Allies 2 | . . 2 . . Largest Group 2 | . . 2 1 . Highest-Rated Group 52 | . . 52 21 . Highest-Rated Ally 31 | . . 31 21 . Total Orders . | . . . . . Ally Attacks 10 | . . 10 . . Total Damage 125 | . . 125 . . Kills 3 | . . 3 . . Allies Corrupted . | . . . . . Allies Melted . | . . . . . Intel | -11 -10 -10 -9 -8 ------- Run | Yrd Mat Min Mat Mat Active Infowar (turns) . | . . . . . Robot Analysis Total . | . . . . . Derelict Logs Recovered . | . . . . . Drone Launches . | . . . . . Drone Recoveries . | . . . . . Exploration | -11 -10 -10 -9 -8 ------------- Run | Yrd Mat Min Mat Mat Turns Passed 1889 | 12 64 378 394 1041 Spaces Moved 1356 | 21 125 397 217 596 Core 652 | 21 125 270 . 236 Treads 626 | . . 127 217 282 Legs 24 | . . . . 24 Wheels 10 | . . . . 10 Hover 35 | . . . . 35 Flight 9 | . . . . 9 Fastest Speed 50 | 50 50 50 160 50 Average Speed 119 | 50 50 85 160 144 Slowest Speed 290 | 50 50 160 160 290 Overloaded Moves . | . . . . . Propulsion Burnouts . | . . . . . Robots Hopped . | . . . . . Potential Cave-ins . | . . . . . Cave-ins Triggered . | . . . . . Exploration Rate (%) 30 | 3 22 72 21 34 Regions Visited 4 Branch Regions 1 Pre-discovered Areas . | . . . . . Known Exits Taken . | . . . . . Unknown Exits Taken 4 | 1 1 1 1 . Scrap Searched 1 | . . 1 . . Spaces Dug . | . . . . . Terrain Destroyed . | . . . . . Melee . | . . . . . Projectile . | . . . . . AOE . | . . . . . Terrain Rammed . | . . . . . Walls Destroyed . | . . . . . Machines Disabled . | . . . . . Actions | -11 -10 -10 -9 -8 --------- Run | Yrd Mat Min Mat Mat Total 1493 | 21 125 417 242 688 Wait . | . . . . . Move 1352 | 20 124 396 216 596 Hop . | . . . . . Pick Up . | . . . . . Fast Attach 26 | . . 7 4 15 Attach . | . . . . . Detach 2 | . . . 1 1 Swap 1 | . . 1 . . Drop 9 | . . . . 9 Fire 55 | . . 5 20 30 Melee 23 | . . . . 23 Ram 7 | 1 1 5 . . Kick . | . . . . . Crush 7 | . . 3 1 3 Escape Stasis . | . . . . . Rewire 11 | . . . . 11 Trap . | . . . . . Miscellaneous . | . . . . . Route ------- -11/Scrapyard -10/Materials (discovered 2 exits: [*Min x2]) -10/Mines -9/Materials -8/Materials History --------- Turn | Location | Event 4 | -11/Scrapyard | Discovered new exit (range 15) 13 | -11/Scrapyard | Entered Materials 74 | -10/Materials | Discovered new exit (range 12) 74 | -10/Materials | Discovered new exit (range 6) 77 | -10/Materials | Entered Mines 121 | -10/Mines | Core integrity fell below 50% 207 | -10/Mines | Joined a pair of Derelicts in attacking an 0b10 outpost 300 | -10/Mines | Build established: Mutant 385 | -10/Mines | Discovered new exit (range 7) 455 | -10/Mines | Entered Materials 455 | -9/Materials | Accompanied by 1 ally 455 | -9/Materials | Evolved 2 slots: Propulsion x2 620 | -9/Materials | Repaired Mining Laser 731 | -9/Materials | Build established: Scavenger-Mutant 823 | -9/Materials | Discovered new exit (range 16) 849 | -9/Materials | Entered another Materials area 849 | -8/Materials | Evolved 2 slots: Power x1, Weapon x1 1195 | -8/Materials | Build established: Scavenger-Tank 1226 | -8/Materials | Central database locked down 1390 | -8/Materials | Core integrity fell below 50% 1418 | -8/Materials | Lost 6 parts (2p2n2w) 1666 | -8/Materials | Lost 3 parts (1p1n1w) 1833 | -8/Materials | Core integrity fell below 20% 1890 | -8/Materials | Destroyed by G-47 Trooper with Particle Gun Last Messages --------------- ALERT: Alarm triggered, dispatching investigation squad. K-01 Serf collects debris. Sneak attack on R-06 Scavenger. R-06 Scavenger destroyed. Acquired Targeting Computer. Acquired 10 matter. Connecting with Recycling Unit... U-05 Engineer lays Concrete. K-01 Serf cleans the Nuclear Reactor. U-05 Engineer lays Concrete. O-16 Technician: "IFF HANDSHAKE FAILED. SECURING TERMINAL." ALERT: Hostiles spotted, dispatching reinforcements to Terminal M004. Acquired Lgt. Nuclear Core. Acquired 10 matter. Sneak attack on K-01 Serf. K-01 Serf destroyed. K-01 Serf cleans the Nuclear Reactor. Map ----- +----------------------------------------------------+ | # ####### #???????????????? | | # #?????# """ ##??????????????? | | # #?????########+# """ #??????????????? | | # #?????# # """ #??????????????? | | # #?????# """ # #??????????????? | | # #?????# """ # #??????????????? | | # #?????# """ # """ #??????????????? | | #?????# # """ #??????????????? | | #?????# """ # """ #??????????????? | | #?????# """ # ##??????????????? | | " ##?????# """ # #???????????????? | | " #??????# # """ #???????????????? | | " #??????########## """ ########????????? | | !#???????#########% """ # #????????? | | #???????# #gg # =""" #????????? | | " #???????# """ # g #*=%Y" #????????? | | " ##??????# """ + """ + """ #????????? | | " #??????# """ # ! """ # #????????? | | #??????# # k""" # =#????????? | | #??????########### %! ########????????? | | # ########## # = #???????????????? | | # # ! [## #% """k #???????????????? | | # %/ % ! ## # """ #???????????????? | | # # % ! ## # """ #???????????????? | | # #####+######+##+## == #???????????????? | | #?#%#????# @ ! #???????????????? | | ### ##???# a ####k #???????????????? | | % #####g gw #??# #???????????????? | | T % %=% #??# #???????????????? | | ! #####+##########??# #???????????????? | | ! ###*##??# #?????????? ???????????????? | | #?# #???# #??????????#/####??????????????? | | ##+####?#+#???# #??????????????????????????????? | | ????????? ????# #??????????????????????????????? | | ????????? ????# #??????????????????????????????? | | ????????? ????# #??????????????????????????????? | | ????????? ????# #??????????????????????????????? | | ????????? ????#####??????????????????????????????? | | ????????? ???????????????????????????????????????? | | ????????? ???????????????????????????????????????? | | ?????????????????????????????????????????????????? | | ?????????????????????????????????????????????????? | | ?????????????????????????????????????????????????? | | ?????????????????????????????????????????????????? | | ?????????????????????????????????????????????????? | | ?????????????????????????????????????????????????? | | ?????????????????????????????????????????????????? | | ?????????????????????????????????????????????????? | | ?????????????????????????????????????????????????? | | ?????????????????????????????????????????????????? | +----------------------------------------------------+ Best States ------------- Heat Dissipation 31 Energy Generation 25 Energy Capacity 315 Matter Stores 300 Matter Capacity 300 Sight Range 16 Terrain Scan Density 10 Armor Coverage 150 Utility Shielding 33 Evasion (%) 50 Targeting Accuracy 5 Recoil Reduction 4 Offensive Hacking 10 Item Schematics ----------------- Lgt. Armor Plating | -8/Materials | Scanalyzed Lgt. Treads | -8/Materials | Scanalyzed Robot Schematics ------------------ None Fabricated ------------ Nothing Repaired ---------- Mining Laser | 3% | -9/Materials Studied --------- Lgt. Treads | -8/Materials | Hacked Alien Tech Used ----------------- None Achievements -------------- Item+ Organ Harvest Overwhelming There's More Where That Came From Universal Adapter Challenges ------------ None Game ------ Seed FocalExoskeletonSpear Manual? 0 Play Time 00:15:32 Cumulative 1.4 hours Start 2025.10.24 @ 18:12:52 End 2025.10.24 @ 18:26:29 Sessions 1 Manual Loads 0 Difficulty Rogue Special Mode None Game No. 9 Rogue 9 Adventurer 0 Explorer 0 Win Type - Total 0 Types 0/0/0/0/0/0/0/0/0/0 Lore% 1 Gallery% 5 Achievement% 5 Wizard Run 0 Options --------- Layout 1 ASCII 0 Keyboard 0 Movement Arrows Keybinds 0 Fullscreen 1 Font 24/Smallcaps Map View 50x35 Zoom Use 0% Tactical HUD 0 Map Filters NONE Filters NONE Steam 1 RUN: 0babe4db-03ac-49af-867a-99921e6e0979